bitfinex-derivatives/quotes_ETHF0:USTF0_20250702
["timestamp","ask_amount","ask_price","bid_price","bid_amount"]
[1751460470632,25.95592,2435.7,2435.6,1.55161118]
[1751460470831,25.95592,2435.7,2435.6,5.60748308]
[1751460471836,25.135,2435.7,2435.6,5.60748308]
[1751460473133,6.72284,2436.0,2435.7,0.82091]
[1751460473435,25.134,2435.9,2435.8,2.18168]
[1751460473636,25.95485,2435.9,2435.8,2.18168]
[1751460474633,25.95485,2435.9,2435.8,4.8544519]
[1751460476437,25.95485,2435.9,2435.8,2.6727719]
[1751460478436,25.95485,2435.9,2435.8,3.4936519]
[1751460483740,25.129,2435.9,2435.8,3.4936519]
[1751460484246,25.129,2435.9,2435.8,4.9071519]
[1751460487044,3.5025,2436.6,2436.1,0.82078]
[1751460487045,11.679,2436.2,2436.1,0.82078]
[1751460487244,11.679,2436.2,2436.1,3.58288]
[1751460487245,36.806,2436.2,2436.1,3.58288]
[1751460487441,11.679,2436.2,2436.1,3.58288]
[1751460487640,36.805,2436.2,2436.1,3.58288]
[1751460487838,11.679,2436.2,2436.1,3.58288]
[1751460488448,18.40164,2436.6,2436.5,0.82065]
[1751460488644,43.52764,2436.6,2436.5,3.4934219]
[1751460489648,18.40164,2436.6,2436.5,3.4934219]
[1751460489850,42.705,2436.6,2436.5,4.2095219]
[1751460490445,43.52561,2436.6,2436.5,4.2095219]
[1751460490844,25.94461,2436.6,2436.5,4.2095219]
[1751460494145,25.94461,2436.6,2436.5,0.82065]
[1751460496050,0.82065,2436.5,2436.4,1.3754]
[1751460496252,0.82068,2436.4,2436.3,0.82069]
[1751460496451,25.93768,2436.4,2436.3,0.82069]
[1751460497855,25.93768,2436.4,2436.2,3.4934919]
[1751460497856,0.82071,2436.3,2436.2,3.4934919]
[1751460499347,0.82071,2436.3,2436.2,2.6727719]
[1751460499549,2.05187,2436.2,2435.8,0.666]
[1751460499757,0.82085,2435.9,2435.8,0.82087]
[1751460499956,25.93585,2435.9,2435.8,0.82087]
[1751460500354,25.93585,2435.9,2435.8,3.4936419]
[1751460501550,25.93585,2435.9,2435.8,2.6727719]
[1751460502457,25.93585,2435.9,2435.8,3.4936519]
[1751460506156,25.93585,2435.9,2435.8,4.8700519]
[1751460507660,25.93585,2435.9,2435.8,3.4936519]
[1751460509462,25.93585,2435.9,2435.8,2.6727719]
[1751460510363,25.93585,2435.9,2435.8,3.4936519]
[1751460510662,25.93585,2435.9,2435.8,2.6727719]
[1751460510866,0.82088,2435.8,2435.7,0.6953]
[1751460511164,0.82088,2435.8,2435.7,1.51622]
[1751460511358,0.82092,2435.7,2435.6,2.67893308]
[1751460511565,26.60032,2435.7,2435.6,0.00616118]
[1751460516365,39.61732,2435.7,2435.6,0.00616118]
[1751460516566,42.4132623,2435.7,2435.6,0.00616118]
[1751460517168,47.4132623,2435.7,2435.6,0.00616118]
[1751460520365,53.3152623,2435.7,2435.6,0.00616118]
[1751460523071,11.5342623,2435.7,2435.6,0.00616118]
[1751460523266,51.9692623,2435.7,2435.6,0.00616118]
[1751460525465,46.9692623,2435.7,2435.6,0.00616118]
[1751460525771,51.9692623,2435.7,2435.6,0.00616118]
[1751460529468,46.9692623,2435.7,2435.6,0.00616118]
[1751460536266,46.9692623,2435.7,2435.6,1.18e-06]
[1751460536466,48.28141411,2435.7,2435.6,1.18e-06]
[1751460545769,48.28330485,2435.7,2435.6,1.18e-06]
[1751460549081,48.28381135,2435.7,2435.6,1.18e-06]
[1751460549281,0.82105,2435.3,2435.2,1.3859]
[1751460549476,28.5888219,2435.3,2435.2,0.3574]
[1751460549676,28.7119923,2435.3,2435.2,0.3574]
[1751460550076,0.82108,2435.2,2435.1,0.7292]
[1751460550280,18.38808,2435.2,2435.1,0.7292]
[1751460550480,18.51127063,2435.2,2435.1,0.7292]
[1751460554585,18.83410189,2435.2,2435.1,0.7292]
[1751460561293,43.59927063,2435.2,2435.1,0.7292]
[1751460561493,43.47608,2435.2,2435.1,0.7292]
[1751460561696,43.47608,2435.2,2435.1,2.89922]
[1751460561991,37.57408,2435.2,2435.1,2.89922]
[1751460562292,11.666,2435.6,2435.1,9.13085]
[1751460562483,11.666,2435.6,2435.5,3.4937519]
[1751460562891,36.751,2435.6,2435.5,8.4937519]
[1751460563387,36.751,2435.6,2435.5,10.5067519]
[1751460564087,36.751,2435.6,2435.5,5.5067519]
[1751460564293,36.751,2435.6,2435.5,10.5067519]
[1751460564495,37.57195,2435.6,2435.5,10.5067519]
[1751460565788,36.751,2435.6,2435.5,10.5067519]
[1751460566089,11.666,2435.6,2435.5,10.5067519]
[1751460566293,36.747,2435.6,2435.5,10.5067519]
[1751460566785,37.56795,2435.6,2435.5,10.5067519]
[1751460567393,36.747,2435.6,2435.5,10.5067519]
[1751460568293,37.56795,2435.6,2435.5,10.5067519]
[1751460568594,36.747,2435.6,2435.5,10.5067519]
[1751460569293,37.56795,2435.6,2435.5,10.5067519]
[1751460569491,36.747,2435.6,2435.5,10.5067519]
[1751460571094,11.666,2435.6,2435.5,10.5067519]
[1751460571291,36.74,2435.6,2435.5,10.5067519]
[1751460571491,0.00616118,2435.9,2435.8,0.82088]
[1751460571694,25.90101118,2435.9,2435.8,3.4936519]
[1751460572600,25.08016118,2435.9,2435.8,3.4936519]
[1751460573295,25.89901118,2435.9,2435.8,3.4936519]
[1751460574298,25.07816118,2435.9,2435.8,3.4936519]
[1751460574499,25.89901118,2435.9,2435.8,3.4936519]
[1751460574698,25.89901118,2435.9,2435.8,2.6727719]
[1751460575099,25.89901118,2435.9,2435.8,4.0941719]
[1751460575397,25.89901118,2435.9,2435.8,5.6279519]
[1751460575998,25.89901118,2435.9,2435.8,4.8070719]
[1751460576898,25.89901118,2435.9,2435.8,5.6279519]
[1751460577398,0.82701118,2435.9,2435.8,5.6279519]
[1751460577602,25.89401118,2435.9,2435.8,3.3856719]
[1751460579003,25.89401118,2435.9,2435.8,0.7129]
[1751460579903,25.89401118,2435.9,2435.8,4.2065519]
[1751460580302,25.89401118,2435.9,2435.8,3.3856719]
[1751460581307,25.89401118,2435.9,2435.8,0.7129]
[1751460583600,0.82088,2435.8,2435.7,2.6727719]
[1751460584306,0.82095,2435.6,2435.5,4.1766319]
[1751460584506,25.88195,2435.6,2435.5,4.1766319]
[1751460585105,25.88195,2435.6,2435.5,3.3556719]
[1751460585301,0.82098,2435.5,2435.4,0.6722]
[1751460585607,0.82107,2435.3,2435.1,2.6727719]
[1751460585906,25.059,2435.2,2435.1,3.4938919]
[1751460586298,25.88008,2435.2,2435.1,3.4938919]
[1751460586503,25.059,2435.2,2435.1,3.4938919]
[1751460587005,25.059,2435.2,2435.1,4.9182919]
[1751460587206,25.88008,2435.2,2435.1,4.9182919]
[1751460589707,25.059,2435.2,2435.1,9.9182919]
[1751460590210,25.88008,2435.2,2435.1,9.9182919]
[1751460591411,0.82108,2435.2,2435.1,4.9182919]
[1751460591714,27.10955,2435.4,2435.1,4.9182919]
[1751460591715,0.82105,2435.4,2435.3,0.82102]
[1751460591909,0.82105,2435.4,2435.3,3.4937919]
[1751460592103,0.82105,2435.4,2435.3,3.4938219]
[1751460592708,1.48195,2435.4,2435.3,3.4938219]
[1751460594011,1.48195,2435.4,2435.3,0.82105]
[1751460594712,1.48195,2435.4,2435.3,3.4938219]
[1751460595312,0.6609,2435.4,2435.3,3.4938219]
[1751460595713,1.48192,2435.4,2435.1,4.7255619]
[1751460596013,1.48192,2435.4,2435.1,3.4938519]
[1751460596014,0.82108,2435.2,2435.1,3.4938519]
[1751460596514,0.82108,2435.3,2435.2,0.82107]
[1751460596814,2.0669,2435.4,2435.3,0.82105]
[1751460597016,0.82107,2435.3,2435.2,0.82106]
[1751460597414,0.82108,2435.2,2435.1,3.4938719]
[1751460597614,25.87508,2435.2,2435.1,0.8211]
[1751460597913,25.87508,2435.2,2435.1,3.4938719]
[1751460598116,25.054,2435.2,2435.1,3.4938919]
[1751460598314,25.87508,2435.2,2435.1,3.4938919]
[1751460598715,25.054,2435.2,2435.1,3.4938919]
[1751460599119,25.054,2435.2,2435.1,4.8833919]
[1751460599617,0.82104,2435.4,2435.3,0.82105]
[1751460599817,37.52604,2435.4,2435.3,3.4938219]
[1751460600321,36.705,2435.4,2435.3,3.4938219]
[1751460601317,37.52602,2435.4,2435.3,3.4938219]
[1751460603918,0.82112,2435.2,2435.1,0.82109]
[1751460604121,0.82112,2435.2,2435.1,2.6727719]
[1751460604311,0.82112,2435.1,2435.0,4.0925719]
[1751460604516,0.82112,2435.1,2435.0,4.9137219]
[1751460605217,0.82112,2435.2,2435.1,0.8211]
[1751460605522,0.82108,2435.2,2435.1,0.8211]
[1751460605819,0.6962,2435.3,2435.2,0.82108]
[1751460606019,25.87208,2435.3,2435.2,3.4938519]
[1751460609424,25.87205,2435.3,2435.2,3.4938519]
[1751460609717,7.95432,2435.7,2435.3,2.05257]
[1751460609718,5.902,2435.7,2435.3,2.05257]
[1751460609926,6.72295,2435.7,2435.6,3.4937219]
[1751460610122,0.82095,2435.7,2435.6,3.4937219]
[1751460610324,25.047,2435.7,2435.6,3.4937219]
[1751460610826,25.86791,2435.7,2435.6,3.4937219]
[1751460611026,11.642,2435.8,2435.6,4.8882019]
[1751460611225,25.047,2435.7,2435.6,4.8882019]
[1751460611426,25.86791,2435.7,2435.6,4.0672719]
[1751460611826,25.86791,2435.7,2435.6,4.8882219]
[1751460613527,25.86791,2435.7,2435.6,3.4937219]
[1751460614222,25.86791,2435.7,2435.6,2.6727719]
[1751460614424,0.82104,2435.4,2435.1,2.05277]
[1751460614623,25.043,2435.3,2435.2,3.4938519]
[1751460615021,25.043,2435.3,2435.2,4.9195519]
[1751460615227,25.043,2435.3,2435.2,9.9195519]
[1751460615729,12.46193,2435.7,2435.6,0.82095]
[1751460615924,0.82091,2435.8,2435.7,0.82088]
[1751460616224,37.50391,2435.8,2435.7,0.82088]
[1751460618527,0.82091,2435.7,2435.6,4.1726819]
[1751460619430,25.85991,2435.7,2435.6,4.1726819]
[1751460622731,25.039,2435.7,2435.6,4.1726819]
[1751460622933,25.85991,2435.7,2435.6,4.1726819]
[1751460623431,25.039,2435.7,2435.6,4.1726819]
[1751460623833,25.85991,2435.7,2435.6,4.1726819]
[1751460625327,25.039,2435.7,2435.6,4.1726819]
[1751460626134,12.46803118,2435.9,2435.8,0.82088]
[1751460626335,11.64716118,2435.9,2435.8,3.4936519]
[1751460626729,36.68116118,2435.9,2435.8,3.4936519]
[1751460627932,36.68116118,2435.9,2435.6,0.679]
[1751460628132,0.82091,2435.7,2435.6,0.679]
[1751460628331,25.85391,2435.7,2435.6,0.679]
[1751460628636,25.85391,2435.7,2435.6,1.49995]
[1751460629636,25.85391,2435.7,2435.6,0.82095]
[1751460630134,0.82095,2435.6,2435.5,1.54367]
[1751460630331,0.82095,2435.6,2435.5,0.7227]
[1751460630737,1.48945,2435.6,2435.5,0.7227]
[1751460631035,1.48945,2435.6,2435.5,1.54368]
[1751460631737,1.48945,2435.6,2435.5,3.4937519]
[1751460634335,0.82095,2435.6,2435.5,3.4937519]
[1751460639539,0.82095,2435.6,2435.5,2.6727719]
[1751460639737,0.82098,2435.5,2435.4,0.6965]
[1751460639938,0.82098,2435.5,2435.4,3.3692719]
[1751460640339,0.82098,2435.5,2435.4,4.1902919]
[1751460641639,0.82097,2435.6,2435.5,0.82095]
[1751460643439,25.85395,2435.7,2435.6,0.82095]
[1751460643641,25.85395,2435.7,2435.6,3.4937219]
[1751460646742,25.85395,2435.7,2435.6,2.6727719]
[1751460647040,0.82098,2435.5,2435.4,4.1902619]
[1751460651444,0.82098,2435.6,2435.5,0.82095]
[1751460652147,25.85394,2435.7,2435.6,0.82095]
[1751460652344,25.85394,2435.7,2435.6,3.4937219]
[1751460653346,25.85394,2435.7,2435.6,2.6727719]
[1751460653546,25.85394,2435.7,2435.6,3.4937219]
[1751460653747,25.85394,2435.7,2435.6,2.6727719]
[1751460654749,0.82098,2435.5,2435.4,3.3692719]
[1751460654945,0.82098,2435.5,2435.4,4.1902719]
[1751460655748,25.85393,2435.7,2435.6,0.82095]
[1751460655949,25.85393,2435.7,2435.6,3.4937219]
[1751460656243,25.85393,2435.7,2435.6,2.6727719]
[1751460656548,25.85393,2435.7,2435.6,3.4937219]
[1751460657749,25.033,2435.7,2435.6,3.4937219]
[1751460658152,11.64716118,2435.9,2435.6,2.6727719]
[1751460658353,0.82704118,2435.9,2435.8,3.4936519]
[1751460658553,25.84104118,2435.9,2435.8,3.4936519]
[1751460660155,25.84104118,2435.9,2435.8,0.82088]
[1751460660357,29.74509308,2435.9,2435.3,2.6727719]
[1751460660551,0.82097,2435.6,2435.5,0.82094]
[1751460660751,25.83297,2435.6,2435.5,0.82094]
[1751460662452,25.83297,2435.6,2435.5,3.4937119]
[1751460663157,0.82108,2435.2,2435.1,0.6859]
[1751460663456,25.011,2435.2,2435.1,4.1797919]
[1751460663854,25.011,2435.2,2435.1,5.6376919]
[1751460664154,5.902,2435.6,2435.2,2.05271]
[1751460664355,25.83102,2435.5,2435.4,0.82098]
[1751460664555,2.7661,2435.7,2435.6,0.82095]
[1751460664556,11.632,2435.7,2435.6,0.82095]
[1751460664852,36.642,2435.7,2435.6,0.82095]
[1751460665056,36.642,2435.7,2435.6,2.93505]
[1751460666058,11.632,2435.7,2435.6,2.93505]
[1751460666260,36.641,2435.7,2435.6,2.93505]
[1751460666960,0.00616118,2435.9,2435.8,0.82088]
[1751460667160,25.01516118,2435.9,2435.8,3.4936519]
[1751460667854,25.83601118,2435.9,2435.8,3.4936519]
[1751460668055,25.01516118,2435.9,2435.8,3.4936519]
[1751460668358,25.83601118,2435.9,2435.8,3.4936519]
[1751460669561,25.01516118,2435.9,2435.8,3.4936519]
[1751460670158,25.01516118,2435.9,2435.8,0.82088]
[1751460671363,0.00616118,2435.9,2435.8,0.82088]
[1751460671664,25.01216118,2435.9,2435.8,2.21818]
[1751460671961,0.00616118,2435.9,2435.8,2.21818]
[1751460672161,25.01116118,2435.9,2435.8,2.21818]
[1751460672360,0.00616118,2435.9,2435.8,2.21818]
[1751460672758,11.623,2436.4,2436.3,0.82067]
[1751460672963,37.94279961,2436.4,2436.3,3.4934419]
[1751460673565,1.31479961,2436.4,2436.3,3.4934419]
[1751460673862,2.13547961,2436.4,2436.3,3.4934419]
[1751460674055,0.82068,2436.4,2436.3,3.4934419]
[1751460674453,0.82067,2436.5,2436.4,0.82065]
[1751460674855,25.82567,2436.5,2436.4,0.82065]
[1751460676370,1.53644,2436.6,2436.5,0.82065]
[1751460676668,6.72258,2436.7,2436.6,0.82061]
[1751460676870,31.72358,2436.7,2436.6,0.82061]
[1751460677267,0.82061,2436.6,2436.5,2.6727719]
[1751460677971,0.82065,2436.5,2436.4,0.82066]
[1751460678163,59.098,2436.8,2436.5,2.05162]
[1751460678366,11.95285165,2437.0,2436.7,3.4933319]
[1751460678671,24.998,2436.9,2436.7,3.4933319]
[1751460678870,0.82054,2436.8,2436.7,3.4933319]
[1751460679070,25.81854,2436.8,2436.7,3.4933319]
[1751460679266,24.998,2436.8,2436.7,3.4933319]
[1751460679773,0.82052,2436.9,2436.8,0.82054]
[1751460679971,59.089,2437.6,2436.7,9.0923719]
[1751460680167,0.82036,2437.4,2437.2,0.8204]
[1751460680371,0.82036,2437.4,2437.3,3.4931519]
[1751460680574,1.54316,2437.4,2437.3,2.6727719]
[1751460680870,0.7228,2437.4,2437.3,3.4931519]
[1751460682271,24.995,2437.6,2437.3,2.6727719]
[1751460682472,2.22629,2437.9,2437.5,2.6727719]
[1751460682675,2.22629,2437.9,2437.8,2.6727719]
[1751460683375,0.82024,2437.7,2437.6,4.2046219]
[1751460683867,0.82024,2437.7,2437.5,0.00616118]
[1751460684072,1.4061,2437.9,2437.5,0.00616118]
[1751460684073,0.82027,2437.6,2437.5,0.00616118]
[1751460684272,2.87737,2437.6,2437.5,0.00616118]
[1751460684970,21.47094377,2437.6,2436.9,0.8205]
[1751460685174,0.8205,2437.0,2436.9,0.8205]
[1751460686068,24.99,2437.2,2436.9,2.6727719]
[1751460686376,24.99,2437.2,2437.1,3.4932119]
[1751460686572,25.81041,2437.2,2437.1,3.4932119]
[1751460686772,25.81041,2437.2,2437.1,2.6727719]
[1751460687269,0.82048,2437.0,2436.9,3.4932519]
[1751460688477,0.82054,2436.8,2436.7,3.3677719]
[1751460689074,0.82054,2436.8,2436.7,2.6727719]
[1751460690576,0.82054,2436.8,2436.7,3.4933519]
[1751460690972,0.82054,2436.8,2436.7,2.6727719]
[1751460691177,0.82054,2436.8,2436.7,3.4933519]
[1751460691974,0.82054,2436.8,2436.7,2.6727719]
[1751460692179,0.82064,2436.6,2436.5,3.4934119]
[1751460697784,0.82064,2436.6,2436.5,2.6727719]
[1751460697990,0.82063,2436.6,2436.5,3.4933719]
[1751460700480,0.8206,2436.7,2436.6,0.82058]
[1751460700680,25.80757,2436.8,2436.7,0.82058]
[1751460701080,0.82057,2436.8,2436.7,1.53648]
[1751460701486,25.80852,2436.9,2436.8,0.82054]
[1751460701787,25.80852,2436.9,2436.8,3.4933119]
[1751460702385,0.82052,2436.9,2436.8,3.4933119]
[1751460703385,0.82666118,2437.0,2436.9,0.82051]
[1751460703685,0.82063,2436.6,2436.1,42.85192]
[1751460703880,0.82063,2436.6,2436.5,3.4933919]
[1751460704081,0.82057,2436.8,2436.7,0.82056]
[1751460704283,0.82057,2436.8,2436.7,3.4933319]
[1751460704584,0.94369491,2436.8,2436.7,3.4933319]
[1751460705179,0.94369491,2436.8,2436.7,2.6727719]
[1751460705385,0.94369491,2436.8,2436.7,3.4933519]
[1751460706481,0.12312491,2436.8,2436.7,3.4933519]
[1751460706686,0.82666118,2437.0,2436.9,0.82051]
[1751460706887,0.82664118,2437.0,2436.9,3.4932819]
[1751460707087,0.00616118,2437.0,2436.9,3.4932819]
[1751460707388,0.82664118,2437.0,2436.9,4.9439819]
[1751460708086,0.00616118,2437.0,2436.9,4.9439819]
[1751460710086,0.82042,2437.2,2437.1,0.82044]
[1751460710288,0.82042,2437.2,2437.1,3.4932119]
[1751460711887,25.8044,2437.3,2437.2,0.82041]
[1751460712289,25.8044,2437.3,2437.2,1.50081]
[1751460713191,25.8044,2437.3,2437.2,0.6804]
[1751460713390,25.8044,2437.3,2437.0,0.82048]
[1751460713391,0.82045,2437.1,2437.0,0.82048]
[1751460713690,0.82045,2437.1,2437.0,1.49508]
[1751460713892,0.82042,2437.2,2437.1,0.82042]
[1751460714193,0.82042,2437.2,2437.0,0.82047]
[1751460714194,0.82047,2437.1,2437.0,0.82047]
[1751460714393,0.82047,2437.1,2437.0,4.1678419]
[1751460714795,0.82047,2437.1,2437.0,4.1678519]
[1751460715794,0.82044,2437.1,2437.0,4.1678219]
[1751460717391,0.82044,2437.1,2437.0,3.3473719]
[1751460717996,0.82048,2437.0,2436.9,0.7202]
[1751460718598,0.82051,2436.9,2436.8,0.696]
[1751460718796,1.51361,2436.9,2436.8,0.696]
[1751460719292,0.82054,2436.8,2436.7,0.00616118]
[1751460719896,2.24214,2436.8,2436.7,0.00616118]
[1751460720098,5.03802165,2436.8,2436.7,0.00616118]
[1751460720399,2.36524975,2436.8,2436.7,0.00616118]
[1751460723601,0.94364975,2436.8,2436.7,0.00616118]
[1751460723901,0.82054,2436.8,2436.7,0.82674118]
[1751460724697,0.82054,2436.8,2436.7,0.00616118]
[1751460725200,0.82054,2436.8,2436.7,0.82674118]
[1751460725401,0.82054,2436.8,2436.7,0.00616118]
[1751460725700,0.82054,2436.8,2436.6,3.4933519]
[1751460725701,0.82069,2436.4,2436.3,0.82068]
[1751460725897,0.82069,2436.4,2436.3,3.4934519]
[1751460727501,0.82069,2436.4,2436.3,4.9438519]
[1751460728509,0.82069,2436.4,2436.3,2.6727719]
[1751460728808,0.82069,2436.4,2436.3,3.4934819]
[1751460729907,0.82069,2436.4,2436.3,2.6727719]
[1751460730107,0.82069,2436.4,2436.3,3.4934819]
[1751460731810,0.82069,2436.4,2436.3,2.6727719]
[1751460735610,0.82069,2436.4,2436.3,3.4934819]
[1751460735803,11.613,2436.7,2436.3,4.7245419]
[1751460736004,7.95336,2436.9,2436.3,4.7245419]
[1751460736005,25.80458,2436.8,2436.7,0.82056]
[1751460736208,25.80458,2436.8,2436.7,4.1847319]
[1751460736705,6.72253,2436.9,2436.8,0.82054]
[1751460737012,31.70653,2436.9,2436.8,0.82054]
[1751460739410,25.80453,2436.9,2436.8,0.82054]
[1751460740206,0.82054,2436.8,2436.7,4.1847219]
[1751460740407,25.80454,2436.9,2436.8,0.82054]
[1751460742205,0.00616118,2437.0,2436.9,0.82051]
[1751460742408,24.98916118,2437.0,2436.9,3.4932819]
[1751460742708,25.80966118,2437.0,2436.9,3.4932819]
[1751460742902,0.82666118,2437.0,2436.9,3.4932819]
[1751460743101,25.80866118,2437.0,2436.9,3.4932819]
[1751460745811,25.80766118,2437.0,2436.9,3.4932819]
[1751460746012,24.98716118,2437.0,2436.9,3.4932819]
[1751460746208,0.00616118,2437.0,2436.9,3.4932819]
[1751460746409,24.98716118,2437.0,2436.9,3.4932819]
[1751460747012,0.00616118,2437.0,2436.9,3.4932819]
[1751460749820,0.00616118,2437.0,2436.9,6.1660538]
[1751460750121,11.611,2437.4,2437.3,0.82037]
[1751460750616,36.589,2437.4,2437.3,0.82037]
[1751460750812,36.589,2437.4,2437.3,2.96707]
[1751460751011,37.40934,2437.4,2437.3,2.96707]
[1751460751412,36.589,2437.4,2437.3,2.96707]
[1751460751621,37.40934,2437.4,2437.3,2.96707]
[1751460751813,12.43134,2437.4,2437.3,2.96707]
[1751460752118,37.40934,2437.4,2437.3,2.96707]
[1751460752914,0.82049,2437.1,2436.6,0.00616118]
[1751460753117,24.976,2437.1,2437.0,0.82048]
[1751460753518,25.79647,2437.1,2437.0,1.52458]
[1751460755713,0.82048,2437.0,2436.9,3.4932719]
[1751460758517,0.82048,2437.0,2436.9,0.82051]
[1751460758924,0.82051,2436.9,2436.8,3.3768719]
[1751460760124,0.82051,2436.9,2436.8,4.1974119]
[1751460762327,0.82051,2436.9,2436.8,3.3768719]
[1751460762625,0.82051,2436.9,2436.8,3.4933119]
[1751460764228,0.82051,2436.9,2436.8,2.6727719]
[1751460764525,0.82054,2436.8,2436.7,1.4038]
[1751460764923,0.82054,2436.8,2436.7,2.22438]
[1751460765121,0.82054,2436.8,2436.7,1.4038]
[1751460765321,0.82054,2436.8,2436.7,2.22438]
[1751460765525,0.82054,2436.8,2436.7,1.4038]
[1751460766027,0.82054,2436.8,2436.7,0.7012]
[1751460766227,0.6645,2436.9,2436.6,3.49952308]
[1751460766228,0.82058,2436.7,2436.6,3.49952308]
[1751460767824,0.82058,2436.7,2436.6,2.67893308]
[1751460768631,0.82058,2436.7,2436.6,3.49954308]
[1751460768926,0.82058,2436.7,2436.6,0.00616118]
[1751460769226,0.82075,2436.2,2436.1,50.01644983]
[1751460769431,0.82075,2436.2,2436.1,44.2935319]
[1751460772439,2.05163,2436.5,2436.1,43.4727719]
[1751460772629,2.0485,2436.6,2436.4,2.6727719]
[1751460772931,0.94379512,2436.5,2436.4,2.6727719]
[1751460773127,0.94379512,2436.5,2436.4,3.4934519]
[1751460773334,0.82065,2436.5,2436.4,3.4934519]
[1751460774335,0.82065,2436.5,2436.4,4.8349519]
[1751460776440,0.82064,2436.6,2436.5,0.8206]
[1751460776636,0.82064,2436.6,2436.5,5.5359719]
[1751460778036,0.8206,2436.8,2436.7,0.82054]
[1751460778229,0.8206,2436.8,2436.7,3.4933119]
[1751460780240,0.8206,2436.8,2436.7,2.6727719]
[1751460780441,0.8206,2436.8,2436.5,2.0426]
[1751460780442,0.82061,2436.6,2436.5,4.1945119]
[1751460780841,0.82061,2436.6,2436.5,3.3738719]
[1751460781237,0.82061,2436.6,2436.5,4.1945219]
[1751460781433,0.82061,2436.6,2436.5,3.3738719]
[1751460781637,0.82068,2436.4,2436.3,4.1600619]
[1751460781839,0.82068,2436.4,2436.3,3.3393719]
[1751460784247,0.82068,2436.4,2436.3,0.6666]
[1751460784540,0.82068,2436.4,2436.3,3.3393719]
[1751460786347,0.82068,2436.4,2436.3,4.1600819]
[1751460787246,0.695,2436.7,2436.3,3.3393719]
[1751460787446,0.82068,2436.5,2436.4,0.82066]
[1751460787642,0.82068,2436.5,2436.4,2.28716]
[1751460787843,12.305,2436.7,2436.6,0.82061]
[1751460787844,0.8206,2436.7,2436.6,0.82061]
[1751460788038,0.82065,2436.5,2436.4,2.28715]
[1751460788242,0.82065,2436.5,2436.4,2.28718]
[1751460788448,0.82065,2436.5,2436.4,1.4665]
[1751460788650,0.82068,2436.4,2436.3,3.3393719]
[1751460789341,0.82068,2436.4,2436.3,4.1600619]
[1751460790446,0.82068,2436.4,2436.3,3.3393719]
[1751460790844,0.82068,2436.4,2436.3,4.1600819]
[1751460792540,0.6696,2436.6,2436.5,0.82062]
[1751460792541,0.82066,2436.6,2436.5,0.82062]
[1751460792744,0.82066,2436.6,2436.5,3.4933919]
[1751460793347,5.902,2436.8,2436.5,2.6727719]
[1751460793646,43.30358,2436.8,2436.7,3.4933519]
[1751460794349,43.30358,2436.8,2436.7,4.1863519]
[1751460795551,37.40158,2436.8,2436.7,4.1863519]
[1751460796446,37.40158,2436.8,2436.7,3.3657719]
[1751460797353,0.82058,2436.7,2436.6,0.6993]
[1751460797552,0.82061,2436.6,2436.5,3.4933819]
[1751460798552,0.6704,2436.7,2436.4,1.3505]
[1751460798553,0.82065,2436.5,2436.4,1.3505]
[1751460798852,25.79265,2436.5,2436.4,0.662]
[1751460799053,0.82068,2436.4,2436.3,0.00616118]
[1751460799252,1.51808,2436.4,2436.3,0.00616118]
[1751460799453,1.51808,2436.4,2436.3,0.82687118]
[1751460802351,1.51808,2436.4,2436.3,0.00616118]
[1751460802948,2.86328,2436.4,2436.3,0.00616118]
[1751460803947,13.88841501,2436.4,2436.3,0.00616118]
[1751460804150,14.43881501,2436.4,2436.3,0.00616118]
[1751460804354,9.43881501,2436.4,2436.3,0.00616118]
[1751460804555,14.43881501,2436.4,2436.3,0.00616118]
[1751460806457,15.72972341,2436.4,2436.3,0.00616118]
[1751460807254,14.43881501,2436.4,2436.3,0.00616118]
[1751460809353,14.43881501,2436.4,2436.3,1.18e-06]
[1751460810259,15.72838729,2436.4,2436.3,1.18e-06]
[1751460812758,52.31338729,2436.4,2436.3,1.18e-06]
[1751460813155,45.41978729,2436.4,2436.3,1.18e-06]
[1751460813660,8.13538729,2436.4,2436.3,1.18e-06]
[1751460813860,2.23338729,2436.4,2436.3,0.70410118]
[1751460814061,38.82038729,2436.4,2436.3,0.70410118]
[1751460814763,12.55381501,2436.4,2436.3,0.70410118]
[1751460814959,37.40768,2436.4,2436.3,1.18e-06]
[1751460815159,0.82088,2435.8,2435.7,0.7041]
[1751460815461,25.79788,2435.8,2435.7,0.7041]
[1751460824768,25.79788,2435.8,2435.7,2.0815]
[1751460832470,25.79788,2435.8,2435.7,0.7041]
[1751460834074,0.82095,2435.6,2435.5,0.7201]
[1751460834269,25.79795,2435.6,2435.5,0.7201]
[1751460835169,25.79795,2435.6,2435.5,2.1494]
[1751460835373,25.79795,2435.6,2435.5,2.8201]
[1751460837676,25.79795,2435.6,2435.5,3.64108]
[1751460837874,25.79795,2435.6,2435.5,2.8201]
[1751460838073,25.79795,2435.6,2435.5,3.64108]
[1751460838372,25.79795,2435.6,2435.5,2.8201]
[1751460839377,25.79795,2435.6,2435.5,3.64108]
[1751460840681,25.79695,2435.6,2435.5,3.64108]
[1751460843980,0.82095,2435.6,2435.5,3.64108]
[1751460844784,0.82095,2435.6,2435.5,1.3908]
[1751460844991,0.82102,2435.4,2435.3,2.66932636]
[1751460845289,0.82101,2435.5,2435.3,3.34412636]
[1751460845490,0.82101,2435.5,2435.4,3.49030636]
[1751460845691,0.82713118,2435.6,2435.5,0.82098]
[1751460845986,0.00616118,2435.6,2435.5,2.27738]
[1751460847688,2.05177,2436.4,2435.8,0.82088]
[1751460847888,12.90269958,2436.3,2436.2,2.66932636]
[1751460848089,0.82081,2436.1,2436.0,3.49010636]
[1751460848688,0.82077,2436.2,2436.1,0.82075]
[1751460848992,0.82077,2436.2,2436.1,2.85045]
[1751460849790,37.40277,2436.2,2436.1,1.49865]
[1751460854099,36.582,2436.2,2436.1,1.49865]
[1751460854602,37.40275,2436.2,2436.1,1.49865]
[1751460855102,2.05157,2436.6,2436.1,0.6779]
[1751460855396,12.4257,2436.5,2436.4,3.48996636]
[1751460855599,37.3957,2436.5,2436.4,3.48996636]